Cogmind - Beta 17 @@@ ROGUE MODE // 2026.07.03 @ 23:15:46 Player: CONM Result: Destroyed by 1M-46L(R) with Subdweller Machine Gun Performance ------------- Evolutions (0) 0 Regions Visited (2) 400 Robots Destroyed (15) 75 Value Destroyed (543) 543 Prototype IDs (0) 0 Alien Tech Used (0) 0 Bonus (0) 0 TOTAL SCORE: 1018 Bonus ------- None Cogmind --------- Core Integrity 0/250 Matter 140/300 Energy 250/250 System Corruption 2% Temperature Cool (0) Movement Core (500) Ox9 Location -10/Subcaves Parts ------- > --- POWER (1) -------- Ion Engine > --- PROPULSION (2) --- (None) > --- UTILITY (2) ------ Large Storage Unit Signal Interpreter > --- WEAPON (2) ------- Particle Gun (fused) > --- INVENTORY (15) --- Subdweller Power Source Aluminum Leg Subdweller Monowheel Heat Sink Improved Heat Sink Small Storage Unit High-capacity Battery (250) Sensor Array Seismic Detector Seismic Detector Core Shielding Particle Gun Light Assault Rifle Peak State ------------ > --- POWER ------------ Light Nuclear Core > --- PROPULSION ------- Light Treads Light Treads > --- UTILITY ---------- Large Storage Unit Seismic Detector > --- WEAPON ----------- Rocket Launcher Rocket Launcher > --- INVENTORY -------- Ion Engine Aluminum Leg Compact Wheel Heat Sink Improved Heat Sink Small Storage Unit High-capacity Battery Core Shielding Particle Gun Particle Gun Light Assault Rifle [Rating: 12] Favorites ----------- Power Ion Engine Engine Ion Engine Power Core Light Nuclear Core Propulsion Light Treads Treads Light Treads Wheel Compact Wheel Utility Large Storage Unit Device Seismic Detector Storage Large Storage Unit Processor Signal Interpreter Protection Power Shielding Weapon Light Assault Rifle Energy Gun Particle Gun Ballistic Gun Light Assault Rifle Launcher Rocket Launcher Build | -11 -10 -10 ------- Run | Yrd Mat Sub Slots Evolved . | . . . Power . | . . . Propulsion . | . . . Utility . | . . . Weapon . | . . . Parts Attached 21 | 7 10 4 Power 3 | 1 2 . Engine 2 | 1 1 . Core 1 | . 1 . Reactor . | . . . Propulsion 6 | 2 3 1 Treads 4 | 2 2 . Leg . | . . . Wheel 2 | . 1 1 Hover . | . . . Flight . | . . . Utility 5 | 2 3 . Device 1 | 1 . . Storage 2 | 1 1 . Processor 1 | . 1 . Hackware . | . . . Protection 1 | . 1 . Artifact . | . . . Weapon 7 | 2 2 3 Energy Gun 2 | . . 2 Energy Cannon . | . . . Ballistic Gun 2 | 2 . . Ballistic Cannon . | . . . Launcher 3 | . 2 1 Special Weapon . | . . . Impact Weapon . | . . . Slashing Weapon . | . . . Piercing Weapon . | . . . Special Melee Weapon . | . . . Unidentified Prototypes . | . . . Parts Lost 9 | . 3 6 Power 1 | . 1 . Propulsion 4 | . 1 3 Utility . | . . . Weapon 4 | . 1 3 Highest Loss Streak 4 | . 1 4 To Critical Strikes . | . . . Average Backups 10 | . 9 13 Power . | . . . Propulsion 1 | . 1 1 Utility 5 | . 4 8 Weapon 2 | . 3 2 Tool/Special . | . . . Unused Backups 11 | . 2 9 Power 1 | . . 1 Propulsion 4 | . 2 2 Utility 6 | . . 6 Weapon . | . . . Tool/Special . | . . . Average Slot Usage (%) 91 | . 94 87 Engine 10 | . 7 14 Core 1 | . 1 . Treads 19 | . 26 8 Wheel 4 | . 1 9 Device 4 | . 7 . Storage 14 | . 14 14 Processor 8 | . 4 14 Protection 1 | . 2 . Energy Gun 6 | . . 14 Ballistic Gun 10 | . 17 . Launcher 10 | . 10 10 Peak Build Rating 12 | 7 12 10 Average Rating 8 | 5 8 8 On Entrance 5 | . 7 9 Avg Prop Armor Cover (%) 14 | . 14 . Naked Turns . | . . . Heaviest Build 36 | 13 34 36 Greatest Support 40 | 40 40 40 Greatest Overweight (x) 9 | . . 9 Average Overweight (x) . | . . . Largest Inventory Capacity 15 | 8 15 15 Average Capacity 12 | 7 11 15 Most Carried 14 | 2 14 14 Average Carried 10 | . 9 13 Final Capacity 15 | 8 15 15 Final Carried 14 | . 14 13 Class Distribution -------------------- 100% | Mutant Dominant Class ---------------- Mutant | -10/Materials Mutant | -10/Subcaves Resources | -11 -10 -10 ----------- Run | Yrd Mat Sub Matter Collected 604 | 278 247 79 Remotely . | . . . Salvage Created 563 | 26 427 110 Parts 35 | 4 26 5 Haulers Intercepted . | . . . Recyclers Shooed 1 | 1 . . Parts Field Recycled . | . . . Retrieved Matter . | . . . Parts Self-Destructed 9 | . . 9 Prevented . | . . . Parts Restored . | . . . Kills | -11 -10 -10 ------- Run | Yrd Mat Sub Combat Hostiles Destroyed 13 | . 10 3 Guns 8 | . 7 1 AOE 5 | . 3 2 Classes Destroyed 5 | 1 3 1 Tunneler 1 | 1 . . Recycler 1 | . 1 . Grunt 9 | . 8 1 Sentry 1 | . . 1 Subdweller 3 | . 2 1 Best Kill Streak 2 | 1 2 2 Combat Bots Only 2 | . 2 2 Max Kills in Single Turn 2 | 1 1 2 Gunslinging . | . . . Exploded 2 | . 1 2 Melee . | . . . Uniques/NPCs Destroyed . | . . . Combat | -11 -10 -10 -------- Run | Yrd Mat Sub Hostile Shots Fired 108 | . 63 45 Missed 38 | . 20 18 Hits 70 | . 43 27 Projectile 70 | . 43 27 AOE 1 | . 1 . Critical Strikes 3 | . 3 . Actively Blocked 1 | . 1 . Damage Taken 1409 | . 815 594 Core 269 | . 142 127 Absorbed by Shields . | . . . Redirected to Shielding 7 | . 7 . Core Remaining (%) 100 | 100 . . Volleys Fired 61 | 4 46 11 Largest 2 | 2 2 2 Hottest 130 | 40 66 130 Shots Fired 116 | 8 92 16 Gun 102 | 8 88 6 Cannon . | . . . Launcher 14 | . 4 10 Special . | . . . Kinetic 104 | 8 88 8 Thermal 6 | . . 6 Explosive 6 | . 4 2 Electromagnetic . | . . . Robot Hit Streak 11 | 3 11 7 Robot Miss Streak 3 | 1 3 2 Penetration Max . | . . . Secondary Targets . | . . . Shots Hit Robots 85 | 6 70 9 Core Hits 34 | 2 29 3 Critical Kills . | . . . Critical Parts Destroyed . | . . . Critical Strikes 1 | . . 1 Burn 1 | . . 1 Melee Attacks . | . . . Impact . | . . . Slashing . | . . . Piercing . | . . . Sneak Attacks . | . . . Combat Hostiles . | . . . Follow-up Attacks . | . . . Damage Inflicted 1334 | 44 811 479 Guns 677 | 44 560 73 Cannons . | . . . Explosions 657 | . 251 406 Melee . | . . . Ramming . | . . . Kinetic 1010 | 44 560 406 Thermal 73 | . . 73 Explosive 154 | . 154 . Electromagnetic 97 | . 97 . Impact . | . . . Slashing . | . . . Piercing . | . . . Highest Corruption 2 | . 2 2 Average Corruption 2 | . 2 2 Corruption Purged . | . . . Corruption Blocked . | . . . Effects 18 | . 2 16 Message Errors 6 | . 1 5 Matter Fused 3 | . . 3 Heat Flow Errors 1 | . . 1 Energy Discharges 1 | . . 1 Parts Fused 1 | . . 1 Data Loss (minor) 3 | . . 3 Data Loss (major) 1 | . 1 . Misfires 2 | . . 2 Overload Shots . | . . . Overflow Damage 49 | . 3 46 Projectiles . | . . . Explosions 49 | . 3 46 Melee . | . . . Knockbacks . | . . . Impact . | . . . Kinetic . | . . . Secondary . | . . . Self-Inflicted Damage 304 | . 116 188 Shots 10 | . 4 6 Rammed . | . . . Targets Rammed . | . . . Kicked . | . . . Crushed . | . . . Highest Temperature 261 | . 261 93 Average Temperature 36 | . 38 24 Received Heat Transfer 672 | . 603 69 Siege Activations . | . . . Martial Activations . | . . . Shielding Activations . | . . . Robots Disrupted 1 | . 1 . Combat Hostiles 1 | . 1 . Robots Corrupted . | . . . Combat Hostiles . | . . . Parts Fried . | . . . Impact Corruptions . | . . . Robots Melted . | . . . Combat Hostiles . | . . . Parts Melted . | . . . Heat Transferred 259 | . . 259 Parts Sabotaged . | . . . Parts Stolen . | . . . Parts Stripped . | . . . Power Chain Reactions . | . . . Alert | -11 -10 -10 ------- Run | Yrd Mat Sub Maximum Alert Level . | . . . Low Security (%) 100 | 100 100 . Level 1 . | . . . Level 2 . | . . . Level 3 . | . . . Level 4 . | . . . Level 5 . | . . . High Security . | . . . Max Security . | . . . Peak Influence 115 | 5 115 . Initial . | . . . Average 17 | . 19 . Influence Increases 368 | 5 323 40 Destroy 0b10 Robot/C 200 | . 160 40 Destroy 0b10 Robot/NC 10 | 5 5 . Destroy Leader 40 | . 40 . Successful Hack 16 | . 16 . Disable Machine 30 | . 30 . Destroy Structure 27 | . 27 . Lose Combat Pursuer 45 | . 45 . Influence Decreases 348 | 5 323 20 Time Decay 310 | 5 305 . Lost Part 38 | . 18 20 Squads Dispatched 2 | . 2 . Investigation 2 | . 2 . Extermination . | . . . Reinforcement . | . . . Assault . | . . . Garrison . | . . . Intercept . | . . . Searches Triggered . | . . . Construction Impeded . | . . . Haulers Reinforced . | . . . Active Scanning Responses . | . . . Cargo Convoy Interrupts . | . . . Stealth | -11 -10 -10 --------- Run | Yrd Mat Sub Distress Signals 4 | . 4 . Communications Jammed . | . . . Distress Signals . | . . . Times Spotted 31 | . 24 7 Peak Tracking Total 4 | . 4 4 Tactical Retreats 4 | . 4 . Traps | -11 -10 -10 ------- Run | Yrd Mat Sub Traps Triggered 3 | . 3 . Indirectly . | . . . Trap Hack Attempts . | . . . Triggered . | . . . Disarmed . | . . . Reprogrammed . | . . . Reused . | . . . Traps Extracted . | . . . Installed . | . . . Triggered . | . . . Machines | -11 -10 -10 ---------- Run | Yrd Mat Sub Machines Disabled 2 | . 2 . Max in Single Turn 2 | . 2 . Machines Repaired . | . . . Machines Dismantled . | . . . Machines Sabotaged . | . . . Overloaded Fab Kills . | . . . Hacking | -11 -10 -10 --------- Run | Yrd Mat Sub Machines Accessed 4 | . 4 . Terminals 4 | . 4 . Fabricators . | . . . Repair Stations . | . . . Recycling Units . | . . . Scanalyzers . | . . . Garrison Access . | . . . Total Hacks 8 | . 8 . Successful 6 | . 6 . Failed 2 | . 2 . Catastrophic 1 | . 1 . Database Lockouts . | . . . Manual 2 | . 2 . Terminals 8 | . 8 . Fabricators . | . . . Repair Stations . | . . . Recycling Units . | . . . Scanalyzers . | . . . Garrison Access . | . . . Terminal Hacks 4 | . 4 . Alert Level 1 | . 1 . Locate Traps 1 | . 1 . Hauler Manifests 1 | . 1 . Registered Components 1 | . 1 . Fabricator Hacks . | . . . Repair Station Hacks . | . . . Recycling Unit Hacks . | . . . Scanalyzer . | . . . Garrison Access Hacks . | . . . Unauthorized Hacks 2 | . 2 . Terminals 2 | . 2 . Track 1 | . 1 . Botnet 1 | . 1 . Fabricators . | . . . Repair Stations . | . . . Recycling Units . | . . . Scanalyzers . | . . . Garrison Access . | . . . Data Cores Recovered . | . . . Used . | . . . Hacking Detections 2 | . 2 . Full Trace Events . | . . . Feedback Events . | . . . Feedback Blocked . | . . . Robot Schematics Acquired . | . . . Robots Built . | . . . Authchips . | . . . Time . | . . . Total Robot Build Rating . | . . . Part Schematics Acquired . | . . . Parts Built . | . . . Authchips . | . . . Time . | . . . Total Part Build Rating . | . . . Part Studies Acquired . | . . . Parts Repaired . | . . . Time . | . . . Parts Recycled . | . . . Recycled Matter . | . . . Retrieved Matter . | . . . Retrieved Components . | . . . Parts Scanalyzed . | . . . Part Schematics Acquired . | . . . Parts Damaged . | . . . Bothacking | -11 -10 -10 ------------ Run | Yrd Mat Sub Used RIF Installer . | . . . Robots Hacked . | . . . Non-combat . | . . . Combat . | . . . Robot Hacks Applied . | . . . Relay Couplers Released . | . . . Fabnet Peak Effective % . | . . . Robots Rewired . | . . . Allies Hacked . | . . . Hacks Repelled . | . . . Allies | -11 -10 -10 -------- Run | Yrd Mat Sub Total Allies . | . . . Largest Group . | . . . Highest-Rated Group . | . . . Highest-Rated Ally . | . . . Total Orders . | . . . Ally Attacks . | . . . Total Damage . | . . . Kills . | . . . Allies Corrupted . | . . . Allies Melted . | . . . Intel | -11 -10 -10 ------- Run | Yrd Mat Sub Active Infowar (turns) 793 | 70 723 . Seismic 793 | 70 723 . Robot Analysis Total . | . . . Derelict Logs Recovered . | . . . Drone Launches . | . . . Drone Recoveries . | . . . Exploration | -11 -10 -10 ------------- Run | Yrd Mat Sub Turns Passed 2587 | 166 1432 989 Spaces Moved 1622 | 95 792 735 Core 7 | 6 . 1 Treads 953 | 89 673 191 Legs . | . . . Wheels 662 | . 119 543 Hover . | . . . Flight . | . . . Fastest Speed 50 | 50 100 115 Average Speed 141 | 153 150 130 Slowest Speed 500 | 160 160 500 Overloaded Moves . | . . . Propulsion Burnouts . | . . . Robots Hopped . | . . . Potential Cave-ins . | . . . Cave-ins Triggered . | . . . Exploration Rate (%) 40 | 4 92 26 Regions Visited 2 Branch Regions 1 Pre-discovered Areas . | . . . Known Exits Taken 1 | . 1 . Unknown Exits Taken 1 | 1 . . Scrap Searched 3 | . . 3 Spaces Dug . | . . . Terrain Destroyed 101 | . 26 75 Melee . | . . . Projectile . | . . . AOE 101 | . 26 75 Terrain Rammed . | . . . Walls Destroyed . | . . . Machines Disabled . | . . . Actions | -11 -10 -10 --------- Run | Yrd Mat Sub Total 1813 | 107 952 754 Wait 78 | . 78 . Move 1620 | 94 791 735 Hop . | . . . Pick Up 23 | 2 18 3 Fast Attach 6 | 5 1 . Attach 7 | 2 1 4 Detach . | . . . Swap 12 | . 11 1 Drop 6 | . 6 . Fire 61 | 4 46 11 Melee . | . . . Ram . | . . . Kick . | . . . Crush . | . . . Escape Stasis . | . . . Rewire . | . . . Trap . | . . . Miscellaneous . | . . . Route ------- -11/Scrapyard -10/Materials (discovered 4 exits: *Mat x2 / [*Min] / *Sub) -10/Subcaves (discovered 1 exit: *Mat) History --------- Turn | Location | Event 6 | -11/Scrapyard | Discovered new exit (range 14) 167 | -11/Scrapyard | Entered Materials 311 | -10/Materials | Build established: Mutant 437 | -10/Materials | Discovered new exit (range 16) 596 | -10/Materials | Discovered new exit (range 12) 867 | -10/Materials | Derelicts attacked the area 1112 | -10/Materials | Core integrity fell below 50% 1379 | -10/Materials | Discovered new exit (range 13) 1395 | -10/Materials | Identified exit to Materials 1563 | -10/Materials | Discovered new exit (range 10) 1583 | -10/Materials | Identified exit to Subcaves 1599 | -10/Materials | Entered Subcaves 1618 | -10/Subcaves | Discovered new exit (range 8) 1634 | -10/Subcaves | Identified exit to Materials 1872 | -10/Subcaves | Disturbed a concealed Subdweller 1942 | -10/Subcaves | Lost 4 parts (2n2w) 2097 | -10/Subcaves | A swath of the cavern ceiling suddenly collapsed 2424 | -10/Subcaves | Core integrity fell below 20% 2580 | -10/Subcaves | Ambushed by Subdweller buried in earth 2588 | -10/Subcaves | Destroyed by 1M-46L(R) with Subdweller Machine Gun Last Messages --------------- 02018_ ED-62Q(u) builds Twisted Machinery. 02092_ System corrupted: Matter fused (-5). A swath of the cavern ceiling suddenly collapses. 02161_ System corrupted: Component data lost. 02210_ System corrupted: Matter fused (-6). 02239_ Acquired 11 matter. 02249_ System corrupted: Particle Gun fused. 02258_ ED-62Q(u) tweaks Twisted Machinery. 02290_ System corrupted: Energy discharge (-75). 02389_ I IVWN:>WAFPA,50BD JFTD6X 02411_ ED-62Q(u) deconstructs Twisted Machinery. 02574_ Destroyed Aluminum Leg. 02576_ SJPBLYUA9VF7# X GGQ 02580_ G-34 Mercenary destroyed. 02580_ Y-45 Defender destroyed. 02580_ Com. Wheel destroyed. 02580_ Destroyed Com. Wheel. 02581_ 1M-46L(R): "ARGHSUB!" 02586_ Sub. Shrapnel Launcher destroyed. 02586_ Destroyed Sub. Shrapnel Launcher. Map ----- +----------------------------------------------------+ | ?????????????????????????????????????????????????? | | ?????????????????????????????????????????????????? | | ?????????????????????????????????????????????????? | | ?????????????????????????????????????????????????? | | ?????????????????????????????????????????????????? | | ?????????????????????????????????????????????????? | | ?????????????????????????????????????????????????? | | ?????????????????????????????????????????????????? | | ?????????????????????????????????????????????????? | | ?????????????????????????????????????????????????? | | ?????????????????????????????????????????????????? | | ?????????????????????????????????????????????????? | | ?????????????????????????????????????????????????? | | ?????????????????????????????????????????????????? | | ??????????????????????????????????#########???#### | | ???????????????????????????????#### ##?## | | ??????????????????????????????## ### | | ??????????????????????????????# | | ??????????????????????????????# | | ?????????????????????????????## | | ????????????????????????????## # | | ????????????????????????##### ### ## # | | ???????????????????????## #?## ### | | ?????????????????????### #??## #?# | | ?????????? # ####???# ##?# | | ?????????? @ #??????# ##??# | | ?????????? #?????# #???##### | | ?????????? ; #???? ##???????? | | ???????????# ;# ##??? #????????? | | ???????????## R ;##???? #????????? | | ????????????##;; ;#????? #????????? | | ?????????????###; #??????? ##????????? | | ??????????????#; ;#???????????????????? | | ??????????????# ;#???????????????????? | | ????????????? ???????????????????? | | ?????????????? ???????????????????? | | ?????????????? ??????????????????? | | ???????????????? #### ??????????????????? | | ?????????????????? ???? ?????????????????? | | ????????????????????? ???? ???????????????????? | | ??????????????????????????? ?????????????????????? | | ?????????????????????????????????????????????????? | | ?????????????????????????????????????????????????? | | ?????????????????????????????????????????????????? | | ?????????????????????????????????????????????????? | | ?????????????????????????????????????????????????? | | ?????????????????????????????????????????????????? | | ?????????????????????????????????????????????????? | | ?????????????????????????????????????????????????? | | ?????????????????????????????????????????????????? | +----------------------------------------------------+ Best States ------------- Heat Dissipation 25 Energy Generation 14 Energy Capacity 250 Matter Stores 300 Matter Capacity 300 Sight Range 16 Terrain Scan Density 10 Power Shielding 33 Evasion (%) 40 Recoil Reduction 2 Item Schematics ----------------- None Robot Schematics ------------------ None Fabricated ------------ Nothing Repaired ---------- Nothing Studied --------- None Alien Tech Used ----------------- None Achievements -------------- None Challenges ------------ None Game ------ Seed MetamassWeaponCartridge Manual? 0 Play Time 01:14:40 Cumulative 165.6 hours Start 2026.06.27 @ 22:44:17 End 2026.07.03 @ 23:15:46 Sessions 5 Manual Loads 0 Difficulty Rogue Special Mode None Game No. 179 Rogue 179 Adventurer 0 Explorer 0 Win Type - Total 0 Types 0/0/0/0/0/0/0/0/0/0 Lore% 56 Gallery% 45 Achievement% 32 Wizard Run 0 Options --------- Layout 0 ASCII 0 Keyboard 0 Movement Arrows Keybinds 0 Fullscreen 1 Font 20/SmallcapsGlow Map View 66x50 Zoom Use 3% Tactical HUD 1 Map Filters NONE Filters NONE Steam 1 RUN: db3d0a91-f06e-451a-b882-d0492a1e5004